bitfinex/quotes_BTCUSD_20251114
["timestamp","ask_amount","ask_price","bid_price","bid_amount"]
[1763081035921,0.20133287,99338.0,99321.0,0.001]
[1763081036172,0.01006643,99340.0,99334.0,0.20134066]
[1763081036343,0.20132737,99341.0,99334.0,0.20134066]
[1763081036581,0.3443,99343.0,99334.0,0.20134066]
[1763081036993,0.3443,99343.0,99324.0,0.20136059]
[1763081037193,0.20134642,99332.0,99325.0,0.20135917]
[1763081037404,0.2013389,99335.0,99334.0,0.001]
[1763081037945,0.0213,99343.0,99334.0,0.001]
[1763081038155,0.0213,99343.0,99330.0,0.20134808]
[1763081038378,0.0213,99343.0,99334.0,0.20134068]
[1763081038581,0.20131112,99349.0,99335.0,0.02019]
[1763081038778,0.01006542,99350.0,99335.0,0.02019]
[1763081038979,0.20131601,99347.0,99335.0,0.02019]
[1763081039478,0.20132856,99341.0,99335.0,0.2215289]
[1763081039679,0.21137535,99350.0,99335.0,0.2215289]
[1763081039680,0.2013191,99345.0,99335.0,0.2215289]
[1763081040012,0.33306542,99350.0,99335.0,0.2225289]
[1763081040198,0.20130376,99353.0,99335.0,0.2225289]
[1763081040436,0.52430449,99352.0,99335.0,0.2225289]
[1763081040671,0.20130799,99351.0,99335.0,0.2033389]
[1763081040890,0.05602441,99360.0,99335.0,0.2033389]
[1763081041097,0.4944123,99360.0,99335.0,0.2033389]
[1763081041302,0.40255267,99366.0,99335.0,0.2033389]
[1763081041303,0.52428495,99362.0,99335.0,0.2033389]
[1763081041511,0.0002,99370.0,99340.0,0.01006643]
[1763081041728,0.00013579,99370.0,99369.0,0.04038]
[1763081042118,0.00013579,99370.0,99369.0,0.02019]
[1763081043018,0.0002739,99370.0,99369.0,0.02019]
[1763081043455,0.0002739,99370.0,99369.0,0.06560874]
[1763081043909,0.0002739,99370.0,99369.0,0.06760874]
[1763081045274,0.45942789,99420.0,99392.0,0.2012228]
[1763081045504,0.2993521,99413.0,99393.0,0.20121964]
[1763081045755,0.20121255,99398.0,99389.0,0.03067]
[1763081045975,0.01860634,99397.0,99389.0,0.0719]
[1763081046181,0.01051879,99420.0,99409.0,0.20118722]
[1763081046390,0.21976165,99419.0,99418.0,0.02104]
[1763081046571,0.21976165,99419.0,99398.0,0.03067]
[1763081046572,0.01859286,99419.0,99398.0,0.03067]
[1763081046807,0.01859286,99418.0,99399.0,0.02245]
[1763081047012,0.01051879,99420.0,99401.0,0.20120321]
[1763081047013,0.20118891,99410.0,99401.0,0.20120321]
[1763081047216,0.44890668,99420.0,99401.0,0.20120321]
[1763081047217,0.2011945,99407.0,99401.0,0.20120511]
[1763081047420,0.44890668,99420.0,99399.0,0.22365724]
[1763081047421,0.20118996,99409.0,99402.0,0.20120252]
[1763081047627,0.20118996,99409.0,99399.0,0.02245]
[1763081047628,0.00046046,99420.0,99411.0,0.03066]
[1763081047844,0.323,99418.0,99399.0,0.02245]
[1763081048094,0.01005935,99410.0,99393.0,0.02245]
[1763081048346,0.20119105,99408.0,99394.0,0.24386938]
[1763081048550,0.20121713,99396.0,99394.0,0.04265]
[1763081048753,0.20121342,99397.0,99394.0,0.04265]
[1763081048954,0.01005935,99410.0,99393.0,0.02245]
[1763081048955,0.20118902,99409.0,99403.0,0.03066]
[1763081049080,0.20119712,99405.0,99403.0,0.03066]
[1763081049502,0.20117736,99415.0,99404.0,0.20119799]
[1763081049703,0.20118614,99411.0,99404.0,0.20119799]
[1763081049909,0.20118614,99411.0,99394.0,0.20321851]
[1763081049910,0.2011891,99409.0,99402.0,0.04265]
[1763081050096,0.20117951,99414.0,99402.0,0.04265]
[1763081050302,0.20118717,99410.0,99404.0,0.20119801]
[1763081050507,0.00046046,99420.0,99414.0,0.2011779]
[1763081050739,0.01854286,99419.0,99417.0,0.20117261]
[1763081050949,0.00046046,99420.0,99419.0,0.03066]
[1763081052788,0.00046046,99420.0,99418.0,0.20116987]
[1763081053196,0.00214018,99419.0,99418.0,0.20116987]
[1763081053611,0.00214018,99419.0,99395.0,0.04341874]
[1763081053737,0.00046046,99420.0,99418.0,0.05085]
[1763081053939,0.00046046,99420.0,99419.0,0.23182879]
[1763081054349,0.00046046,99420.0,99419.0,0.03066]
[1763081054734,0.00046046,99420.0,99418.0,0.22136047]
[1763081054939,0.00046046,99420.0,99418.0,0.26601047]
[1763081055507,0.23048879,99419.0,99418.0,0.002]
[1763081055708,0.20117314,99417.0,99410.0,0.02019]
[1763081055951,0.20118427,99412.0,99410.0,0.02019]
[1763081056590,0.20162824,99420.0,99413.0,0.20118063]
[1763081056793,0.20116879,99419.0,99418.0,0.004]
[1763081056993,0.20116879,99419.0,99418.0,0.002]
[1763081057734,0.28168047,99419.0,99418.0,0.002]
[1763081057934,0.20118497,99411.0,99410.0,0.02219]
[1763081058139,0.20118497,99411.0,99410.0,0.02419]
[1763081058348,0.20118309,99412.0,99410.0,0.02419]
[1763081058765,0.20118309,99412.0,99410.0,0.02219]
[1763081059122,0.20118309,99412.0,99410.0,0.002]
[1763081059330,0.03125405,99411.0,99410.0,0.002]
[1763081059689,0.20121938,99394.0,99392.0,0.04341874]
[1763081060044,0.02159,99407.0,99392.0,0.04341874]
[1763081060257,0.20121853,99395.0,99392.0,0.04341874]
[1763081060459,0.20121616,99396.0,99392.0,0.04341874]
[1763081060726,0.02159,99418.0,99402.0,0.03066]
[1763081060935,0.20119796,99405.0,99402.0,0.03066]
[1763081061406,0.20119753,99405.0,99402.0,0.03066]
[1763081061647,0.20119967,99404.0,99402.0,0.03066]
[1763081062282,0.20121736,99395.0,99393.0,0.02245]
[1763081062493,0.20121765,99395.0,99393.0,0.02245]
[1763081062718,0.20121455,99397.0,99393.0,0.02245]
[1763081062918,0.02159,99418.0,99393.0,0.02245]
[1763081063051,0.20120633,99401.0,99393.0,0.02245]
[1763081063263,0.20120994,99399.0,99393.0,0.22367028]
[1763081063480,0.20121559,99396.0,99393.0,0.02445]
[1763081063681,0.20121866,99395.0,99393.0,0.02445]
[1763081064532,0.20121866,99395.0,99393.0,0.02245]
[1763081065048,0.20120975,99399.0,99395.0,0.20121621]
[1763081065260,0.20120975,99399.0,99396.0,0.20121482]
[1763081065462,0.20118959,99409.0,99405.0,0.03066]
[1763081065676,0.20118751,99410.0,99408.0,0.03066]
[1763081065899,0.01854197,99409.0,99408.0,0.03066]
[1763081066258,0.02042449,99409.0,99408.0,0.03066]
[1763081066641,0.02042449,99409.0,99407.0,0.20119257]
[1763081066840,0.01854197,99408.0,99407.0,0.20119257]
[1763081067256,0.01854197,99408.0,99406.0,0.20119282]
[1763081067467,0.01854197,99407.0,99406.0,0.24461355]
[1763081067880,0.00046046,99420.0,99419.0,0.20116879]
[1763081068076,0.00046046,99420.0,99419.0,0.23182879]
[1763081068077,0.0190308,99420.0,99419.0,0.23182879]
[1763081068861,0.0190308,99420.0,99419.0,0.20116879]
[1763081069418,0.0190308,99420.0,99419.0,0.24248879]
[1763081069618,0.0190308,99420.0,99419.0,0.20316879]
[1763081070241,0.0190308,99420.0,99419.0,0.002]
[1763081071220,0.22019756,99420.0,99419.0,0.002]
[1763081072913,0.0190308,99420.0,99419.0,0.002]
[1763081073356,0.02119674,99420.0,99419.0,0.002]
[1763081076987,0.02119674,99420.0,99419.0,0.20316879]
[1763081077185,0.02119674,99420.0,99419.0,0.002]
[1763081077309,0.02119674,99420.0,99419.0,0.20316879]
[1763081077516,0.02119674,99420.0,99419.0,0.002]
[1763081077712,0.2223635,99420.0,99419.0,0.002]
[1763081079079,0.31528218,99420.0,99419.0,0.002]
[1763081081111,0.2528135,99420.0,99419.0,0.002]
[1763081083316,0.2528135,99420.0,99419.0,0.001]
[1763081083577,0.2528135,99420.0,99413.0,0.01787]
[1763081083578,0.2011789,99414.0,99413.0,0.01787]
[1763081083788,0.21974924,99414.0,99413.0,0.01787]
[1763081084996,0.01857034,99414.0,99413.0,0.01787]
[1763081085473,0.01857034,99414.0,99413.0,0.01887]
[1763081085715,0.01857034,99414.0,99413.0,0.01987]
[1763081085930,0.21974924,99414.0,99413.0,0.01987]
[1763081088211,0.01857034,99414.0,99413.0,0.01987]
[1763081088834,0.21974924,99414.0,99413.0,0.01987]
[1763081088995,0.22176059,99414.0,99413.0,0.01987]
[1763081090639,0.02058169,99414.0,99413.0,0.01987]
[1763081090839,0.02058169,99414.0,99413.0,0.22105093]
[1763081091301,0.02058169,99414.0,99413.0,0.01987]
[1763081091511,0.22176059,99414.0,99413.0,0.01987]
[1763081093963,0.02058169,99414.0,99413.0,0.22105093]
[1763081094370,0.00201135,99414.0,99413.0,0.22105093]
[1763081095360,0.00201135,99414.0,99413.0,0.22005093]
[1763081095677,0.00201135,99414.0,99413.0,0.22205093]
[1763081095954,0.00201135,99414.0,99413.0,0.22105093]
[1763081096116,0.00201135,99414.0,99413.0,0.22305093]
[1763081097177,0.00201135,99414.0,99413.0,0.26646967]
[1763081099024,0.00201135,99414.0,99413.0,0.26446967]
[1763081099372,0.00201135,99414.0,99413.0,0.26646967]
[1763081099962,0.00201135,99414.0,99413.0,0.26446967]
[1763081100392,0.00201135,99414.0,99413.0,0.26646967]
[1763081101965,0.20319025,99414.0,99413.0,0.004]
[1763081102155,0.00201135,99414.0,99413.0,0.004]
[1763081102569,0.00201135,99414.0,99413.0,0.002]
[1763081102797,0.00201135,99414.0,99413.0,0.20518093]
[1763081103010,0.00201135,99414.0,99413.0,0.24033093]
[1763081103156,0.00201135,99414.0,99413.0,0.20118093]
[1763081103360,0.00201135,99414.0,99413.0,0.20318093]
[1763081103970,0.00201135,99414.0,99413.0,0.20518093]
[1763081106044,0.00201135,99414.0,99413.0,0.20118093]
[1763081106232,0.00201135,99414.0,99413.0,0.20318093]
[1763081106430,0.00201135,99414.0,99413.0,0.24233093]
[1763081106641,0.00201135,99414.0,99413.0,0.20518093]
[1763081107255,0.00201135,99414.0,99413.0,0.004]
[1763081108296,0.00201135,99414.0,99413.0,0.002]
[1763081108508,0.03087135,99414.0,99413.0,0.002]
[1763081108788,0.03087135,99414.0,99413.0,0.004]
[1763081108970,0.00201135,99414.0,99413.0,0.004]
[1763081109143,0.00201135,99414.0,99413.0,0.002]
[1763081109358,0.00201135,99414.0,99412.0,0.2148627]
[1763081109359,0.00201135,99414.0,99412.0,0.01368]
[1763081109546,0.20118871,99410.0,99406.0,0.20119441]
[1763081109949,0.20118949,99409.0,99406.0,0.20119441]
[1763081110152,0.04151,99417.0,99406.0,0.20119441]
[1763081110153,0.04151,99428.0,99419.0,0.20116879]
[1763081110357,0.20117317,99417.0,99415.0,0.01368]
[1763081110690,0.2011789,99414.0,99413.0,0.002]
[1763081110885,0.04978,99407.0,99405.0,0.20119654]
[1763081111093,0.2509745,99407.0,99402.0,0.20120172]
[1763081111323,0.20120671,99401.0,99393.0,0.02245]
[1763081111524,0.20120671,99401.0,99394.0,0.04341874]
[1763081111741,0.02092,99407.0,99394.0,0.04341874]
[1763081111952,0.02092,99394.0,99387.0,0.01123]
[1763081112117,0.2012032,99402.0,99398.0,0.20121113]
[1763081112321,0.02886,99399.0,99387.0,0.01123]
[1763081112505,0.20121736,99395.0,99391.0,0.20122465]
[1763081112726,0.20121534,99396.0,99393.0,0.20122027]
[1763081113928,0.02092,99397.0,99393.0,0.002]
[1763081114128,0.20121938,99394.0,99393.0,0.002]
[1763081114945,0.02092,99397.0,99395.0,0.20121648]
[1763081115798,0.02092,99397.0,99393.0,0.20521976]
[1763081115989,0.02886,99396.0,99393.0,0.004]
[1763081116139,0.02092,99397.0,99394.0,0.20121871]
[1763081116339,0.02092,99397.0,99395.0,0.20121698]
[1763081116537,0.02092,99397.0,99395.0,0.20321698]
[1763081116740,0.02092,99397.0,99395.0,0.20521698]
[1763081116941,0.02092,99397.0,99395.0,0.20321698]
[1763081117197,0.07119305,99396.0,99395.0,0.002]
[1763081117399,0.12702915,99396.0,99395.0,0.002]
[1763081117640,0.45002915,99396.0,99395.0,0.002]
[1763081117852,0.52421736,99395.0,99364.0,0.07233306]
[1763081118050,0.20128041,99364.0,99359.0,0.21251959]
[1763081118252,0.55019414,99390.0,99359.0,0.21251959]
[1763081118253,0.20122783,99390.0,99368.0,0.20127173]
[1763081118458,0.02092,99377.0,99371.0,0.20126524]
[1763081118672,0.02092,99395.0,99369.0,0.04014]
[1763081118868,0.008335,99394.0,99379.0,0.02656]
[1763081119141,0.20123252,99388.0,99384.0,0.2012387]
[1763081119269,0.20122755,99390.0,99386.0,0.2012341]
[1763081119481,0.20122531,99392.0,99388.0,0.20123086]
[1763081119678,0.02886,99389.0,99379.0,0.01768]
[1763081120157,0.02886,99389.0,99387.0,0.20123326]
[1763081120338,0.25102773,99380.0,99379.0,0.001]
[1763081121390,0.25102773,99380.0,99351.0,0.323]
[1763081121391,0.04978,99380.0,99351.0,0.323]
[1763081121593,0.01006137,99390.0,99379.0,0.02756]
[1763081121813,0.01005833,99420.0,99389.0,0.02656]
[1763081121814,0.04151,99403.0,99389.0,0.02656]
[1763081122033,0.02092,99402.0,99395.0,0.20121728]
[1763081122231,0.20120521,99401.0,99397.0,0.20121274]
[1763081122458,0.22211378,99407.0,99403.0,0.20119934]
[1763081122679,0.02886,99404.0,99379.0,0.001]
[1763081122887,0.02886,99404.0,99370.0,0.01006339]
[1763081123099,0.20123356,99387.0,99380.0,0.20124665]
[1763081123328,0.20123839,99385.0,99378.0,0.20124988]
[1763081123537,0.04024704,99385.0,99375.0,0.20125588]
[1763081123755,0.02092,99389.0,99383.0,0.2012412]
[1763081123992,0.20123356,99387.0,99381.0,0.20124488]
[1763081124198,0.20123356,99387.0,99370.0,0.01006339]
[1763081124199,0.2012402,99384.0,99379.0,0.20124888]
[1763081124401,0.20123772,99385.0,99380.0,0.20124659]
[1763081124600,0.20123772,99385.0,99381.0,0.20124432]
[1763081124816,0.20123772,99385.0,99380.0,0.20124659]
[1763081124817,0.2012407,99384.0,99380.0,0.20124659]
[1763081124970,0.22174369,99384.0,99380.0,0.20124659]
[1763081125377,0.20124231,99383.0,99380.0,0.20324659]
[1763081125598,0.20124571,99381.0,99380.0,0.003]
[1763081125804,0.20123316,99388.0,99380.0,0.003]
[1763081126007,0.20123316,99388.0,99381.0,0.20124571]
[1763081126206,0.02092,99389.0,99379.0,0.20124976]
[1763081126407,0.02092,99389.0,99373.0,0.01768]
[1763081126408,0.02092,99395.0,99392.0,0.20122242]
[1763081126641,0.20119614,99406.0,99397.0,0.20121316]
[1763081126900,0.01005935,99410.0,99400.0,0.2012056]
[1763081127186,0.20118538,99411.0,99403.0,0.02052]
[1763081127391,0.04151,99417.0,99403.0,0.02052]
[1763081127585,0.00221383,99404.0,99403.0,0.02052]
[1763081128648,0.00221383,99404.0,99403.0,0.02152]
[1763081128793,0.00221383,99404.0,99403.0,0.02252]
[1763081129621,0.27273181,99404.0,99403.0,0.002]
[1763081130603,0.27273181,99404.0,99403.0,0.001]
[1763081131420,0.27273181,99404.0,99403.0,0.002]
[1763081131621,0.27273181,99404.0,99403.0,0.001]
[1763081131863,0.27273181,99404.0,99370.0,0.03014002]
[1763081132081,0.27273181,99404.0,99350.0,0.01006542]
[1763081132082,0.01637,99385.0,99362.0,0.20128315]
[1763081132292,0.01637,99385.0,99360.0,0.0382]
[1763081132471,0.20125719,99376.0,99361.0,0.20128621]
[1763081132680,0.20125881,99375.0,99371.0,0.2012657]
[1763081132817,0.20125719,99376.0,99373.0,0.201261]
[1763081133023,0.20124044,99384.0,99361.0,0.04341874]
[1763081133249,0.20124044,99384.0,99381.0,0.20124513]
[1763081133465,0.01637,99385.0,99362.0,0.0382]
[1763081133466,0.01637,99385.0,99382.0,0.20124333]
[1763081133666,0.01637,99385.0,99383.0,0.2012407]
[1763081133866,0.20122829,99390.0,99385.0,0.20123616]
[1763081134043,0.20122467,99392.0,99385.0,0.20123616]
[1763081134249,0.20121698,99396.0,99381.0,0.20124571]
[1763081134453,0.05494,99398.0,99394.0,0.2012187]
[1763081134675,0.02663,99395.0,99394.0,0.2012187]
[1763081134853,0.01637,99398.0,99387.0,0.01768]
[1763081135063,0.01637,99398.0,99388.0,0.20123029]
[1763081135237,0.01637,99398.0,99389.0,0.20122951]
[1763081135438,0.20121592,99396.0,99387.0,0.01768]
[1763081135640,0.04573692,99395.0,99381.0,0.01768]
[1763081135845,0.20121736,99395.0,99394.0,0.001]
[1763081136460,0.01637,99398.0,99394.0,0.001]
[1763081136665,0.01637,99398.0,99396.0,0.20121456]
[1763081136876,0.01637,99398.0,99394.0,0.001]
[1763081136877,0.00046017,99404.0,99395.0,0.2012171]
[1763081137079,0.00046017,99404.0,99403.0,0.20120117]
[1763081137506,0.00046017,99404.0,99392.0,0.20122176]
[1763081137507,0.02709017,99404.0,99392.0,0.20122176]
[1763081137727,0.06566017,99404.0,99384.0,0.20123922]
[1763081137938,0.00147015,99393.0,99391.0,0.20122494]
[1763081138149,0.00757195,99403.0,99401.0,0.20120354]
[1763081138352,0.00046017,99404.0,99403.0,0.20120117]
[1763081138994,0.00046017,99404.0,99382.0,0.08161874]
[1763081139218,0.00046017,99404.0,99401.0,0.20120427]
[1763081139858,0.20120521,99401.0,99391.0,0.002]
[1763081140057,0.02663,99402.0,99392.0,0.20122343]
[1763081140268,0.00046017,99404.0,99391.0,0.002]
[1763081140269,0.00046017,99404.0,99402.0,0.20120258]
[1763081140608,0.03857,99417.0,99402.0,0.20120258]
[1763081140609,0.20119609,99406.0,99402.0,0.20120258]
[1763081140819,0.00013797,99406.0,99403.0,0.20220004]
[1763081141046,0.00013797,99406.0,99404.0,0.2011987]
[1763081141251,0.00013797,99406.0,99401.0,0.01026]
[1763081141458,0.00013797,99406.0,99402.0,0.001]
[1763081141910,0.20120063,99404.0,99402.0,0.001]
[1763081142168,0.20120063,99404.0,99403.0,0.001]
[1763081142429,0.22471678,99404.0,99403.0,0.001]
[1763081142645,0.25134678,99404.0,99403.0,0.001]
[1763081142900,0.02663,99404.0,99403.0,0.001]
[1763081143344,0.02663,99404.0,99392.0,0.20122256]
[1763081143592,0.20122885,99390.0,99388.0,0.01026]
[1763081143815,0.2012277,99392.0,99388.0,0.01026]
[1763081144049,0.20122872,99390.0,99388.0,0.01026]
[1763081144322,0.20119751,99405.0,99403.0,0.001]
[1763081144576,0.2012146,99397.0,99391.0,0.20122394]
[1763081144788,0.04595,99404.0,99392.0,0.001]
[1763081145009,0.20121646,99396.0,99392.0,0.20222202]
[1763081145222,0.20121646,99396.0,99392.0,0.20122202]
[1763081145440,0.01932,99404.0,99388.0,0.01226]
[1763081145660,0.20122874,99390.0,99388.0,0.01226]
[1763081146276,0.20122951,99389.0,99388.0,0.001]
[1763081146696,0.03857,99397.0,99380.0,0.01006238]
[1763081146916,0.03870797,99406.0,99396.0,0.20121462]
[1763081147130,0.20120117,99403.0,99398.0,0.20120983]
[1763081147350,0.03870797,99406.0,99398.0,0.20120983]
[1763081147551,0.00013797,99406.0,99403.0,0.20120117]
[1763081148186,0.00013797,99406.0,99405.0,0.20119712]
[1763081149219,0.00013797,99406.0,99405.0,0.56761586]
[1763081149597,0.00194318,99406.0,99405.0,0.56761586]
[1763081150018,0.00194318,99406.0,99405.0,0.56861586]
[1763081150228,0.00194318,99406.0,99405.0,0.56761586]
[1763081150658,0.00194318,99406.0,99405.0,0.59975588]
[1763081150856,0.00394318,99406.0,99405.0,0.59775588]
[1763081151324,0.00194318,99406.0,99405.0,0.59775588]
[1763081151677,0.00394318,99406.0,99405.0,0.59775588]
[1763081153919,0.03057318,99406.0,99405.0,0.39655876]
[1763081154146,0.03057318,99406.0,99373.0,0.0382]
[1763081154147,0.20126393,99372.0,99369.0,0.00984272]
[1763081154381,0.01932,99370.0,99369.0,0.00984272]
[1763081154589,0.20126393,99372.0,99369.0,0.00984272]
[1763081154590,0.03857,99391.0,99369.0,0.00984272]
[1763081154797,0.01932,99387.0,99370.0,0.20126719]
[1763081155002,0.01932,99387.0,99364.0,0.0382]
[1763081155207,0.01932,99387.0,99363.0,0.0191]
[1763081155208,0.03857,99386.0,99363.0,0.0191]
[1763081155451,0.20127591,99367.0,99364.0,0.00046017]
[1763081155654,0.06181455,99385.0,99364.0,0.00046017]
[1763081155860,0.01932,99374.0,99364.0,0.00046017]
[1763081156268,0.03857,99384.0,99364.0,0.00046017]
[1763081156481,0.003,99386.0,99373.0,0.02599]
[1763081156703,0.01932,99387.0,99385.0,0.20123614]
[1763081156948,0.20121809,99395.0,99373.0,0.06419]
[1763081157154,0.004,99374.0,99373.0,0.26544988]
[1763081157357,0.002,99374.0,99373.0,0.27066862]
[1763081157566,0.20119638,99406.0,99380.0,0.01006238]
[1763081157773,0.20119984,99404.0,99399.0,0.20120925]
[1763081157974,0.20120598,99401.0,99397.0,0.20121192]
[1763081158202,0.2012041,99402.0,99397.0,0.20121192]
[1763081158402,0.20121015,99399.0,99395.0,0.20121601]
[1763081158602,0.20121015,99399.0,99385.0,0.20323611]
[1763081158603,0.20119991,99404.0,99399.0,0.20120852]
[1763081158756,0.20119914,99404.0,99394.0,0.20121824]
[1763081158941,0.20120117,99403.0,99397.0,0.20121331]
[1763081159142,0.00013797,99404.0,99400.0,0.2012065]
[1763081159741,0.00013797,99404.0,99402.0,0.20120254]
[1763081160149,0.00172789,99403.0,99402.0,0.20120254]
[1763081161074,0.00172789,99403.0,99402.0,0.24462128]
[1763081161624,0.00172789,99403.0,99402.0,0.28471128]
[1763081161909,0.00172789,99403.0,99402.0,0.24562128]
[1763081162121,0.00172789,99403.0,99402.0,0.24462128]
[1763081162532,0.00172789,99403.0,99402.0,0.24562128]
[1763081162533,0.00672789,99403.0,99402.0,0.24562128]
[1763081163156,0.00672789,99403.0,99402.0,0.24462128]
[1763081163363,0.01272789,99403.0,99402.0,0.24462128]
[1763081163779,0.01272789,99403.0,99402.0,0.56762128]
[1763081166156,0.01272789,99403.0,99402.0,0.04341874]
[1763081166369,0.01272789,99403.0,99398.0,0.03014002]
[1763081166570,0.02140568,99402.0,99390.0,0.0106]
[1763081166692,0.011,99403.0,99390.0,0.0106]
[1763081166891,0.20122517,99392.0,99390.0,0.0106]
[1763081167137,0.0204,99391.0,99374.0,0.20125953]
[1763081167354,0.0204,99391.0,99371.0,0.06951002]
[1763081167355,0.20122748,99390.0,99371.0,0.06951002]
[1763081167512,0.20125075,99379.0,99371.0,0.24063538]
[1763081167720,0.20122951,99389.0,99370.0,0.01006339]
[1763081167918,0.02622595,99388.0,99378.0,0.20125022]
[1763081168125,0.20122234,99393.0,99382.0,0.20124253]
[1763081168320,0.20121922,99395.0,99384.0,0.20123781]
[1763081168640,0.004,99379.0,99378.0,0.20125178]
[1763081168850,0.06103,99408.0,99375.0,0.0106]
[1763081169053,0.004,99391.0,99389.0,0.02774]
[1763081169455,0.20122668,99391.0,99389.0,0.02774]
[1763081169746,0.20119558,99406.0,99389.0,0.02774]
[1763081169880,0.2012141,99397.0,99392.0,0.20122229]
[1763081170079,0.20120658,99401.0,99393.0,0.20122079]
[1763081170292,0.20120117,99403.0,99389.0,0.02774]
[1763081170591,0.20122587,99391.0,99389.0,0.02774]
[1763081170796,0.20122587,99391.0,99376.0,0.24062462]
[1763081170797,0.004,99379.0,99377.0,0.04341874]
[1763081170992,0.004,99379.0,99378.0,0.24467052]
[1763081171438,0.03043,99379.0,99372.0,0.03014002]
[1763081171640,0.20127687,99366.0,99355.0,0.03937]
[1763081171850,0.4680273,99390.0,99350.0,0.01006542]
[1763081171851,0.18490752,99365.0,99350.0,0.01006542]
[1763081172092,0.0204,99373.0,99347.0,0.09816915]
[1763081172301,0.0204,99373.0,99342.0,0.12010347]
[1763081172302,0.20131715,99346.0,99342.0,0.12010347]
[1763081172512,0.02643,99364.0,99344.0,0.20132066]
[1763081172513,0.00030965,99348.0,99344.0,0.20132066]
[1763081172722,0.2013073,99351.0,99346.0,0.20131618]
[1763081172928,0.2013073,99351.0,99344.0,0.20178083]
[1763081172929,0.2013114,99349.0,99344.0,0.20178083]
[1763081173126,0.20131563,99347.0,99344.0,0.00046017]
[1763081173345,0.20131769,99346.0,99344.0,0.00046017]
[1763081174110,0.02643,99345.0,99344.0,0.00046017]
[1763081174911,0.004,99346.0,99344.0,0.00046017]
[1763081175110,0.0204,99355.0,99344.0,0.00046017]
[1763081175318,0.04683,99345.0,99344.0,0.00046017]
[1763081175550,0.05083,99345.0,99344.0,0.00046017]
[1763081175851,0.004,99346.0,99344.0,0.00046017]
[1763081176033,0.20129969,99355.0,99345.0,0.00967]
[1763081176258,0.20129818,99356.0,99350.0,0.20130761]
[1763081176459,0.20129359,99358.0,99351.0,0.20130554]
[1763081177033,0.20129513,99357.0,99352.0,0.20130371]
[1763081177263,0.20130917,99350.0,99345.0,0.21398808]
[1763081177597,0.20130515,99352.0,99345.0,0.01267]
[1763081177750,0.0204,99360.0,99352.0,0.20130445]
[1763081177949,0.20130187,99354.0,99347.0,0.20131321]
[1763081178165,0.00030965,99348.0,99346.0,0.20131661]
[1763081178428,0.0204,99360.0,99354.0,0.20129999]
[1763081178616,0.20129132,99359.0,99355.0,0.20129706]
[1763081178744,0.04063,99374.0,99356.0,0.20129435]
[1763081178948,0.04063,99374.0,99352.0,0.001]
[1763081179168,0.20130138,99354.0,99352.0,0.001]
[1763081179372,0.04063,99374.0,99357.0,0.20129353]
[1763081179583,0.20127907,99365.0,99359.0,0.20129008]
[1763081180013,0.20128905,99360.0,99355.0,0.2012966]
[1763081180257,0.20129007,99360.0,99355.0,0.2012966]
[1763081180466,0.22168134,99364.0,99353.0,0.20130117]
[1763081180673,0.20129002,99360.0,99355.0,0.20129762]
[1763081181100,0.22166389,99373.0,99352.0,0.003]
[1763081181309,0.20126482,99372.0,99365.0,0.20127811]
[1763081181506,0.20127636,99366.0,99364.0,0.0191]
[1763081181864,0.0204,99375.0,99364.0,0.0191]
[1763081182232,0.20127811,99365.0,99364.0,0.0191]
[1763081182637,0.20127811,99365.0,99364.0,0.0211]
[1763081182832,0.26166025,99365.0,99364.0,0.002]
[1763081183032,0.20129634,99356.0,99355.0,0.001]
[1763081183238,0.20130202,99354.0,99350.0,0.20130844]
[1763081183461,0.20130276,99353.0,99348.0,0.20131087]
[1763081183668,0.04063,99374.0,99355.0,0.201298]
[1763081183801,0.20128771,99361.0,99357.0,0.20129384]
[1763081184017,0.00051603,99356.0,99355.0,0.001]
[1763081184426,0.00051603,99356.0,99348.0,0.20131224]
[1763081184613,0.20130308,99353.0,99348.0,0.20231224]
[1763081184836,0.20127561,99367.0,99355.0,0.002]
[1763081185034,0.2012948,99357.0,99355.0,0.002]
[1763081185239,0.0204,99356.0,99355.0,0.002]
[1763081185473,0.0204,99356.0,99346.0,0.04341874]
[1763081185687,0.0204,99356.0,99348.0,0.003]
[1763081185892,0.20130527,99352.0,99348.0,0.003]
[1763081186100,0.20130897,99350.0,99348.0,0.003]
[1763081186237,0.20131863,99345.0,99344.0,0.00046017]
[1763081186446,0.22774863,99345.0,99344.0,0.00046017]
[1763081187746,0.22774863,99345.0,99344.0,0.00146017]
[1763081188933,0.22774863,99345.0,99344.0,0.00346017]
[1763081189714,0.20131863,99345.0,99344.0,0.00346017]
[1763081189888,0.22774863,99345.0,99344.0,0.00246017]
[1763081190265,0.44762932,99370.0,99344.0,0.00346017]
[1763081190480,0.20131863,99345.0,99344.0,0.00346017]
[1763081190890,0.05944,99356.0,99348.0,0.20131191]
[1763081191095,0.20130354,99353.0,99347.0,0.20131427]
[1763081191346,0.0204,99356.0,99344.0,0.00146017]
[1763081191552,0.20129687,99356.0,99352.0,0.20130337]
[1763081191783,0.323,99372.0,99359.0,0.20128926]
[1763081191982,0.323,99370.0,99364.0,0.20127894]
[1763081192113,0.22165899,99375.0,99356.0,0.02706]
[1763081192322,0.0204,99375.0,99372.0,0.20126262]
[1763081192520,0.20125057,99379.0,99372.0,0.20126262]
[1763081192729,0.02677,99373.0,99351.0,0.04341874]
[1763081192940,0.04611,99348.0,99344.0,0.00046017]
[1763081193134,0.04611,99348.0,99347.0,0.003]
[1763081193534,0.04611,99348.0,99347.0,0.002]
[1763081193757,0.20131863,99345.0,99344.0,0.00046017]
[1763081193959,0.31322546,99345.0,99344.0,0.00046017]
[1763081194704,0.22808863,99345.0,99344.0,0.00046017]
[1763081195412,0.00023224,99345.0,99344.0,0.00046017]
[1763081195563,0.00023224,99345.0,99344.0,0.00246017]
[1763081196013,0.00023224,99345.0,99344.0,0.00546017]
[1763081197370,0.02700224,99345.0,99344.0,0.00546017]
[1763081197653,0.22832087,99345.0,99344.0,0.00546017]
[1763081197870,0.29141501,99345.0,99344.0,0.00046017]
[1763081198315,0.29141501,99345.0,99344.0,0.00246017]
[1763081198541,0.61441501,99345.0,99344.0,0.00246017]
[1763081198759,0.61441501,99345.0,99344.0,0.00046017]
[1763081199644,0.61441501,99345.0,99344.0,0.00346017]
[1763081199903,0.61441501,99345.0,99344.0,0.00046017]
[1763081200120,0.20138756,99311.0,99310.0,0.0004]
[1763081200340,0.24749756,99311.0,99310.0,0.00053811]
[1763081201908,0.24749756,99311.0,99310.0,0.00353811]
[1763081202128,0.2385695,99311.0,99310.0,0.00353811]